Cogmind - Beta 16.1 @@@ ROGUE MODE // 2026.03.02 @ 01:46:25 Player: Savant Result: Destroyed by 4X-QBY(R) with Subdweller Laser Performance ------------- Evolutions (0) 0 Regions Visited (2) 400 Robots Destroyed (31) 155 Value Destroyed (519) 519 Prototype IDs (0) 0 Alien Tech Used (0) 0 Bonus (0) 0 TOTAL SCORE: 1074 Bonus ------- None Cogmind --------- Core Integrity 0/250 Matter 213/300 Energy 24/250 System Corruption 0% Temperature Cool (6) Movement Treading (160) Location -10/Subcaves Parts ------- > --- POWER (1) -------- Ion Engine > --- PROPULSION (2) --- Improved Treads Improved Treads > --- UTILITY (2) ------ Cooling System Large Storage Unit > --- WEAPON (2) ------- Medium Laser Beam Cannon > --- INVENTORY (15) --- Light Treads Improved Treads Improved Treads Compact Wheel Cooling System Cooling System High-capacity Storage Unit Seismic Detector EM Pulse Gun Medium Laser Grenade Launcher Mining Laser Peak State ------------ > --- POWER ------------ Light Ion Engine > --- PROPULSION ------- Improved Treads Improved Treads > --- UTILITY ---------- Cooling System Large Storage Unit > --- WEAPON ----------- Medium Laser Beam Cannon > --- INVENTORY -------- Ion Engine Light Treads Improved Treads Improved Treads Compact Wheel Cooling System Cooling System High-capacity Storage Unit Seismic Detector EM Pulse Gun Medium Laser Grenade Launcher Mining Laser [Rating: 11] Favorites ----------- Power Light Ion Engine Engine Light Ion Engine Propulsion Light Treads Treads Light Treads Utility Seismic Detector Device Seismic Detector Storage Small Storage Unit Weapon Medium Laser Energy Gun Medium Laser Energy Cannon Beam Cannon Special Weapon Mining Laser Build | -11 -10 -10 ------- Run | Yrd Mat Sub Slots Evolved . | . . . Power . | . . . Propulsion . | . . . Utility . | . . . Weapon . | . . . Parts Attached 18 | 9 6 3 Power 2 | 1 . 1 Engine 2 | 1 . 1 Core . | . . . Reactor . | . . . Propulsion 5 | 2 1 2 Treads 5 | 2 1 2 Leg . | . . . Wheel . | . . . Hover . | . . . Flight . | . . . Utility 6 | 3 3 . Device 4 | 2 2 . Storage 2 | 1 1 . Processor . | . . . Hackware . | . . . Protection . | . . . Artifact . | . . . Weapon 5 | 3 2 . Energy Gun 3 | 3 . . Energy Cannon 1 | . 1 . Ballistic Gun . | . . . Ballistic Cannon . | . . . Launcher . | . . . Special Weapon 1 | . 1 . Impact Weapon . | . . . Slashing Weapon . | . . . Piercing Weapon . | . . . Special Melee Weapon . | . . . Unidentified Prototypes . | . . . Parts Lost 4 | . 1 3 Power 1 | . . 1 Propulsion 2 | . . 2 Utility 1 | . 1 . Weapon . | . . . Highest Loss Streak 3 | . 1 3 To Critical Strikes . | . . . Average Backups 9 | 5 8 14 Power . | . 1 1 Propulsion 4 | 3 4 5 Utility 1 | . 1 4 Weapon 2 | 1 2 4 Tool/Special . | . . . Unused Backups 11 | . 4 7 Power . | . . . Propulsion 6 | . 3 3 Utility 3 | . . 3 Weapon 2 | . 1 1 Tool/Special . | . . . Average Slot Usage (%) 99 | . 99 100 Engine 14 | . 14 14 Treads 28 | . 28 28 Device 13 | . 13 14 Storage 14 | . 14 14 Energy Gun 23 | . 24 11 Energy Cannon 3 | . 2 14 Peak Build Rating 11 | 9 10 11 Average Rating 8 | 6 8 9 On Entrance 6 | . 8 10 Avg Prop Armor Cover (%) . | . . . Naked Turns . | . . . Heaviest Build 30 | 13 30 30 Greatest Support 43 | 40 43 40 Greatest Overweight (x) . | . . . Average Overweight (x) . | . . . Largest Inventory Capacity 15 | 8 15 15 Average Capacity 9 | 7 9 15 Most Carried 15 | 8 15 15 Average Carried 9 | 5 8 14 Final Capacity 15 | 8 15 15 Final Carried 15 | 8 15 12 Class Distribution -------------------- 100% | Mutant Dominant Class ---------------- Mutant | -10/Materials Mutant | -10/Subcaves Resources | -11 -10 -10 ----------- Run | Yrd Mat Sub Matter Collected 463 | 290 173 . Remotely . | . . . Salvage Created 778 | 167 577 34 Parts 58 | 14 40 4 Haulers Intercepted . | . . . Recyclers Shooed 2 | 1 1 . Parts Field Recycled . | . . . Retrieved Matter . | . . . Parts Self-Destructed . | . . . Prevented . | . . . Parts Restored . | . . . Kills | -11 -10 -10 ------- Run | Yrd Mat Sub Combat Hostiles Destroyed 17 | . 16 1 Guns 15 | . 15 . Cannons 1 | . . 1 Classes Destroyed 8 | 2 5 1 Worker 1 | . 1 . Tunneler 8 | 5 3 . Recycler 1 | 1 . . Operator 1 | . 1 . Watcher 3 | . 3 . Swarmer 8 | . 8 . Grunt 8 | . 8 . Subdweller 1 | . . 1 Best Kill Streak 8 | 2 8 1 Combat Bots Only 6 | . 6 1 Max Kills in Single Turn 2 | 1 2 1 Gunslinging . | . . . Exploded . | . . . Melee . | . . . Uniques/NPCs Destroyed . | . . . Combat | -11 -10 -10 -------- Run | Yrd Mat Sub Hostile Shots Fired 81 | . 64 17 Missed 22 | . 19 3 Hits 59 | . 45 14 Projectile 59 | . 45 14 AOE 4 | . . 4 Damage Taken 942 | . 470 472 Core 253 | . 94 159 Absorbed by Shields . | . . . Core Remaining (%) 100 | 100 . . Volleys Fired 87 | 8 71 8 Largest 2 | 2 2 2 Hottest 150 | 100 150 110 Shots Fired 160 | 16 130 14 Gun 139 | 16 117 6 Cannon 6 | . . 6 Launcher . | . . . Special 15 | . 13 2 Kinetic . | . . . Thermal 160 | 16 130 14 Explosive . | . . . Electromagnetic . | . . . Robot Hit Streak 14 | 8 13 14 Robot Miss Streak 6 | 1 6 . Penetration Max . | . . . Secondary Targets 1 | . 1 . Max Gunslinging Chain 1 | . 1 . Shots Hit Robots 107 | 12 83 12 Core Hits 42 | 7 33 2 Critical Kills . | . . . Critical Parts Destroyed . | . . . Critical Strikes 6 | . 6 . Burn 6 | . 6 . Melee Attacks . | . . . Impact . | . . . Slashing . | . . . Piercing . | . . . Sneak Attacks . | . . . Combat Hostiles . | . . . Follow-up Attacks . | . . . Damage Inflicted 1391 | 148 1060 183 Guns 1284 | 148 1060 76 Cannons 107 | . . 107 Explosions . | . . . Melee . | . . . Ramming . | . . . Kinetic . | . . . Thermal 1391 | 148 1060 183 Explosive . | . . . Electromagnetic . | . . . Impact . | . . . Slashing . | . . . Piercing . | . . . Highest Corruption . | . . . Average Corruption . | . . . Corruption Purged . | . . . Corruption Blocked . | . . . Overload Shots . | . . . Overflow Damage . | . . . Projectiles . | . . . Explosions . | . . . Melee . | . . . Knockbacks . | . . . Impact . | . . . Kinetic . | . . . Secondary . | . . . Self-Inflicted Damage . | . . . Shots . | . . . Rammed . | . . . Targets Rammed . | . . . Kicked . | . . . Crushed . | . . . Highest Temperature 246 | 156 246 . Average Temperature 74 | 49 77 . Received Heat Transfer 279 | . 195 84 Siege Activations . | . . . Martial Activations . | . . . Shielding Activations . | . . . Robots Disrupted . | . . . Combat Hostiles . | . . . Robots Corrupted . | . . . Combat Hostiles . | . . . Parts Fried . | . . . Impact Corruptions . | . . . Robots Melted 1 | . 1 . Combat Hostiles 1 | . 1 . Parts Melted 7 | 1 6 . Heat Transferred 4440 | 444 3552 444 Parts Sabotaged . | . . . Parts Stolen . | . . . Parts Stripped . | . . . Power Chain Reactions . | . . . Alert | -11 -10 -10 ------- Run | Yrd Mat Sub Maximum Alert Level 1 | . 1 . Low Security (%) 99 | 100 99 . Level 1 . | . . . Level 2 . | . . . Level 3 . | . . . Level 4 . | . . . Level 5 . | . . . High Security . | . . . Max Security . | . . . Peak Influence 201 | 5 201 . Initial . | . . . Average 98 | 1 111 . Influence Increases 628 | 30 598 . Destroy 0b10 Robot/C 320 | . 320 . Destroy 0b10 Robot/NC 70 | 30 40 . Destroy Leader 86 | . 86 . Successful Hack 18 | . 18 . Select Force Hacks 30 | . 30 . Destroy Structure 14 | . 14 . Lose Combat Pursuer 90 | . 90 . Influence Decreases 628 | 30 499 99 Entered New Map 48 | . . 48 Time Decay 570 | 30 489 51 Lost Part 10 | . 10 . Squads Dispatched 7 | . 7 . Investigation 4 | . 4 . Extermination . | . . . Reinforcement 3 | . 3 . Assault . | . . . Garrison . | . . . Intercept . | . . . Searches Triggered . | . . . Construction Impeded . | . . . Haulers Reinforced . | . . . Active Scanning Responses . | . . . Cargo Convoy Interrupts . | . . . Stealth | -11 -10 -10 --------- Run | Yrd Mat Sub Distress Signals 1 | . 1 . Communications Jammed . | . . . Distress Signals . | . . . Times Spotted 33 | . 30 3 Peak Tracking Total 5 | . 5 3 Tactical Retreats 3 | . 3 . Traps | -11 -10 -10 ------- Run | Yrd Mat Sub Traps Triggered 3 | . 3 . Indirectly . | . . . Trap Hack Attempts . | . . . Triggered . | . . . Disarmed . | . . . Reprogrammed . | . . . Reused . | . . . Traps Extracted . | . . . Installed . | . . . Triggered . | . . . Machines | -11 -10 -10 ---------- Run | Yrd Mat Sub Machines Disabled . | . . . Max in Single Turn . | . . . Machines Repaired . | . . . Machines Dismantled . | . . . Machines Sabotaged . | . . . Overloaded Fab Kills . | . . . Hacking | -11 -10 -10 --------- Run | Yrd Mat Sub Machines Accessed 6 | . 6 . Terminals 5 | . 5 . Fabricators . | . . . Repair Stations . | . . . Recycling Units 1 | . 1 . Scanalyzers . | . . . Garrison Access . | . . . Total Hacks 12 | . 12 . Successful 6 | . 6 . Failed 6 | . 6 . Catastrophic . | . . . Database Lockouts . | . . . Manual 9 | . 9 . Terminals 11 | . 11 . Fabricators . | . . . Repair Stations . | . . . Recycling Units 1 | . 1 . Scanalyzers . | . . . Garrison Access . | . . . Terminal Hacks 3 | . 3 . Part Schematic 1 | . 1 . Locate Traps 1 | . 1 . Hauler Manifests 1 | . 1 . Fabricator Hacks . | . . . Repair Station Hacks . | . . . Recycling Unit Hacks . | . . . Scanalyzer . | . . . Garrison Access Hacks . | . . . Unauthorized Hacks 3 | . 3 . Terminals 2 | . 2 . Botnet 1 | . 1 . Skim 1 | . 1 . Fabricators . | . . . Repair Stations . | . . . Recycling Units 1 | . 1 . Tunnel 1 | . 1 . Scanalyzers . | . . . Garrison Access . | . . . Data Cores Recovered . | . . . Used . | . . . Hacking Detections 5 | . 5 . Full Trace Events . | . . . Feedback Events . | . . . Feedback Blocked . | . . . Robot Schematics Acquired . | . . . Robots Built . | . . . Authchips . | . . . Time . | . . . Total Robot Build Rating . | . . . Part Schematics Acquired 1 | . 1 . Parts Built . | . . . Authchips . | . . . Time . | . . . Total Part Build Rating . | . . . Part Studies Acquired . | . . . Parts Repaired . | . . . Time . | . . . Parts Recycled . | . . . Recycled Matter . | . . . Retrieved Matter . | . . . Retrieved Components . | . . . Parts Scanalyzed . | . . . Part Schematics Acquired . | . . . Parts Damaged . | . . . Bothacking | -11 -10 -10 ------------ Run | Yrd Mat Sub Used RIF Installer . | . . . Robots Hacked . | . . . Non-combat . | . . . Combat . | . . . Robot Hacks Applied . | . . . Relay Couplers Released . | . . . Fabnet Peak Effective % . | . . . Robots Rewired . | . . . Allies Hacked . | . . . Hacks Repelled . | . . . Allies | -11 -10 -10 -------- Run | Yrd Mat Sub Total Allies . | . . . Largest Group . | . . . Highest-Rated Group . | . . . Highest-Rated Ally . | . . . Total Orders . | . . . Ally Attacks . | . . . Total Damage . | . . . Kills . | . . . Allies Corrupted . | . . . Allies Melted . | . . . Intel | -11 -10 -10 ------- Run | Yrd Mat Sub Active Infowar (turns) 1871 | 103 1628 140 Terrain 255 | 94 161 . Seismic 1616 | 9 1467 140 Robot Analysis Total . | . . . Derelict Logs Recovered . | . . . Drone Launches . | . . . Drone Recoveries . | . . . Exploration | -11 -10 -10 ------------- Run | Yrd Mat Sub Turns Passed 2073 | 225 1660 188 Spaces Moved 1022 | 111 822 89 Core 2 | 2 . . Treads 1020 | 109 822 89 Legs . | . . . Wheels . | . . . Hover . | . . . Flight . | . . . Fastest Speed 50 | 50 160 160 Average Speed 159 | 158 160 160 Slowest Speed 160 | 160 160 160 Overloaded Moves . | . . . Propulsion Burnouts . | . . . Robots Hopped . | . . . Potential Cave-ins . | . . . Cave-ins Triggered . | . . . Exploration Rate (%) 35 | 4 90 12 Regions Visited 2 Branch Regions 1 Pre-discovered Areas 1 | . 1 . Known Exits Taken . | . . . Unknown Exits Taken 2 | 1 1 . Scrap Searched . | . . . Spaces Dug 9 | . 9 . Terrain Destroyed 13 | . 13 . Melee . | . . . Projectile 13 | . 13 . AOE . | . . . Terrain Rammed . | . . . Walls Destroyed . | . . . Machines Disabled . | . . . Actions | -11 -10 -10 --------- Run | Yrd Mat Sub Total 1260 | 140 1006 114 Wait 88 | 5 75 8 Move 1020 | 110 821 89 Hop . | . . . Pick Up 21 | 8 13 . Fast Attach 7 | 7 . . Attach 5 | . 2 3 Detach 1 | . 1 . Swap 25 | 2 17 6 Drop 6 | . 6 . Fire 87 | 8 71 8 Melee . | . . . Ram . | . . . Kick . | . . . Crush . | . . . Escape Stasis . | . . . Rewire . | . . . Trap . | . . . Miscellaneous . | . . . Route ------- -11/Scrapyard -10/Materials (discovered 6 exits: [*Mat x3] / [*Min x2] / [*Sub]) -10/Subcaves (discovered 1 exit: [*Mat]) History --------- Turn | Location | Event 26 | -11/Scrapyard | Discovered new exit (range 15) 226 | -11/Scrapyard | Entered Materials 306 | -10/Materials | Build established: Mutant 709 | -10/Materials | Discovered new exit (range 15) 820 | -10/Materials | Discovered new exit (range 12) 923 | -10/Materials | Discovered new exit (range 11) 1109 | -10/Materials | Discovered new exit (range 6) 1348 | -10/Materials | Discovered new exit (range 9) 1547 | -10/Materials | Discovered new exit (range 3) 1886 | -10/Materials | Entered Subcaves 1887 | -10/Subcaves | Shifting Twisted Machinery released Scrap Shield 1887 | -10/Subcaves | Shifting Twisted Machinery released Flamer 1963 | -10/Subcaves | A swath of the cavern ceiling suddenly collapsed 1986 | -10/Subcaves | Discovered new exit (range 7) 2047 | -10/Subcaves | Ambushed by Subdwellers from Twisted Machinery 2053 | -10/Subcaves | Core integrity fell below 50% 2054 | -10/Subcaves | Ambushed by Subdweller buried in earth 2066 | -10/Subcaves | Core integrity fell below 20% 2074 | -10/Subcaves | Destroyed by 4X-QBY(R) with Subdweller Laser Last Messages --------------- Flamer falls loose from the Twisted Machinery. 01887_ MH-9V2(h): "Hey you don't look like the usual menacing locals. I'm on point searching for advanced tech we've heard is being developed in secret down here, seen anything like that?" 01888_ MH-9V2(h) drops a Scrap Shield: "Protect yourself with this!" 01963_ MH-9V2(h) crushed by falling debris. 01963_ MH-9V2(h) system corrupted by crushing effect. A swath of the cavern ceiling suddenly collapses. 01986_ EXIT=FOUND 02004_ OQ-QX7(u) builds Twisted Machinery. 02047_ QH-T8Z(R) emerges from the Twisted Machinery. 02048_ HV Slug penetrates Twisted Machinery. 02051_ HV Slug penetrates Wall. 02054_ MH-9V2(h) destroyed. 02054_ Lgt. Treads destroyed. 02055_ 4X-QBY(R): "ARGHSUB!" 02055_ QH-T8Z(R) destroyed. 02066_ Subatomizers dissect the Disposable Heat Sink. 02066_ Lgt. Treads destroyed. 02070_ Lgt. Ion Engine destroyed. Map ----- +----------------------------------------------------+ | ?????????????????????????????????????????????????? | | ?????????????????????????????????????????????????? | | ?????????????????????????????????????????????????? | | ?????????????????????????????????????????????????? | | ?????????????????????????????????????????????????? | | ??????????????????#########??????????????????????? | | ??????????????????# # ###????????????????????? | | ??????????????????# ?????????????????????? | | #??????###????????## ##????????????????????? | | #??????# ##??????# #????????????????????? | | #?????? ????### ### #????????????????????? | | #??????# ??? ### ## ######???????????????? | | #??????### #??? # ## ## # ###?????????????? | | ????????"#"#??## ## "" " ##????????????? | | ????????#""###"###"" # " " #????????????? | | ????????#"#"#"##"#""######### """" #????????????? | | ###??????#"#""#""#"##???????# <"##"##????????????? | | #####?###"""#"""# #???????## ##?"##????????????? | | ##"###"#""""""####???###?## ## " #????????????? | | " " ""#""##???###"### #"#?????????????? | | # #""#"#"""#"#"# #?## # #?????????????? | | ## # # ######"# #?# ###?????????????? | | ?####### " #### ;###???????????????? | | #??????## ##?# #?????????????????? | | #???????##########???# #?????????????????? | | ##???????????????????# R@ #?????????????????? | | #???????????????????# #?????????????????? | | #???????????????????# #?????????????????? | | ##???????????????????# #?????????????????? | | #????????????????????# #????????????????? | | ?????????????????????# R #???????????????? | | ?????????????????????# #;##???????????????? | | ?????????????????????## ####????????????????? | | ??????????????????????## ##???????????????????? | | ???????????????????????# ###????????????????????? | | ??????????????????????? ???????????????????????? | | ??????????????????????? ???????????????????????? | | ???????????????????????*=!???????????????????????? | | ???????????????????????"%&???????????????????????? | | ???????????????????????"! ???????????????????????? | | ???????????????????????? ???????????????????????? | | ?????????????????????????????????????????????????? | | ?????????????????????????????????????????????????? | | "????????????????????????????????????????????????? | | ???????????????????????????????????????????????? | | ????????????????????????????????????????????????? | | ?????????????????????????????????????????????????? | | ?????????????????????????????????????????????????? | | ?????????????????????????????????????????????????? | | ?????????????????????????????????????????????????? | +----------------------------------------------------+ Best States ------------- Heat Dissipation 47 Energy Generation 10 Energy Capacity 125 Matter Stores 300 Matter Capacity 300 Sight Range 16 Terrain Scan Range 16 Terrain Scan Density 10 Evasion (%) 40 Recoil Reduction 2 Item Schematics ----------------- Huge Storage Unit | -10/Materials | Hacked Robot Schematics ------------------ None Fabricated ------------ Nothing Repaired ---------- Nothing Studied --------- None Alien Tech Used ----------------- None Achievements -------------- None Challenges ------------ None Game ------ Seed PartitionFortressRipteeth Manual? 0 Play Time 00:13:35 Cumulative 1103.8 hours Start 2026.03.02 @ 01:34:17 End 2026.03.02 @ 01:46:25 Sessions 1 Manual Loads 0 Difficulty Rogue Special Mode None Game No. 199 Rogue 199 Adventurer 0 Explorer 0 Win Type - Total 66 Types 25/7/10/1/3/1/10/4/3/2 Lore% 94 Gallery% 91 Achievement% 83 Wizard Run 0 Options --------- Layout 0 ASCII 0 Keyboard 0 Movement Numpad Keybinds 0 Fullscreen 1 Font 18/SmallcapsGlow Map View 76x50 Zoom Use 0% Tactical HUD 1 Map Filters NONE Filters NONE Steam 1 RUN: a859e6d7-743f-48f7-83ec-8aa5671df3c5